Cogmind - Beta 17 @@@ ROGUE MODE // 2026.06.28 @ 11:40:58 Player: Junkman Result: Destroyed by Piercing Trap Performance ------------- Evolutions (0) 0 Regions Visited (3) 600 Robots Destroyed (20) 100 Value Destroyed (610) 610 Prototype IDs (0) 0 Alien Tech Used (0) 0 Bonus (-146) -146 TOTAL SCORE: 1164 Bonus ------- Friendly Fire -146 Cogmind --------- Core Integrity 0/250 Matter 300/300 Energy 146/150 System Corruption 0% Temperature Cool (2) Movement Walking (120) Location -10/Subcaves Parts ------- > --- POWER (1) -------- Light Angular Momentum Engine > --- PROPULSION (2) --- Aluminum Leg Aluminum Leg > --- UTILITY (2) ------ Small Storage Unit Core Shielding > --- WEAPON (2) ------- Makeshift Hammer > --- INVENTORY (8) ---- Subdweller Power Source Light Treads Carbon-fiber Leg Improved Heat Sink Utility Shielding Light Armor Plating Makeshift Light Armor Plating Peak State ------------ > --- POWER ------------ Light Angular Momentum Engine > --- PROPULSION ------- Aluminum Leg Aluminum Leg > --- UTILITY ---------- Improved Heat Sink Small Storage Unit > --- WEAPON ----------- Subdweller Beam Cannon Makeshift Hammer > --- INVENTORY -------- Subdweller Power Source Light Treads Carbon-fiber Leg Core Shielding Utility Shielding Light Armor Plating Makeshift Light Armor Plating [Rating: 18] Favorites ----------- Power Light Angular Momentum Engine Engine Light Angular Momentum Engine Power Core Light Nuclear Core Propulsion Aluminum Leg Leg Aluminum Leg Utility Small Storage Unit Device Sensor Array Storage Small Storage Unit Protection Core Shielding Weapon Makeshift Hammer Energy Gun Medium Laser Energy Cannon Beam Cannon Ballistic Gun Assault Rifle Launcher Grenade Launcher Impact Weapon Makeshift Hammer Slashing Weapon Mining Claw Build | -11 -10 -10 -10 ------- Run | Yrd Mat Min Sub Slots Evolved . | . . . . Power . | . . . . Propulsion . | . . . . Utility . | . . . . Weapon . | . . . . Parts Attached 29 | 6 8 6 9 Power 7 | 1 1 1 4 Engine 6 | 1 1 . 4 Core 1 | . . 1 . Reactor . | . . . . Propulsion 6 | 2 2 . 2 Treads . | . . . . Leg 6 | 2 2 . 2 Wheel . | . . . . Hover . | . . . . Flight . | . . . . Utility 6 | . 2 2 2 Device 3 | . 1 1 1 Storage 1 | . 1 . . Processor . | . . . . Hackware . | . . . . Protection 2 | . . 1 1 Artifact . | . . . . Weapon 10 | 3 3 3 1 Energy Gun 3 | 2 1 . . Energy Cannon 2 | . 1 . 1 Ballistic Gun 2 | 1 . 1 . Ballistic Cannon . | . . . . Launcher 1 | . 1 . . Special Weapon . | . . . . Impact Weapon 1 | . . 1 . Slashing Weapon 1 | . . 1 . Piercing Weapon . | . . . . Special Melee Weapon . | . . . . Unidentified Prototypes . | . . . . Parts Lost 7 | . 4 . 3 Power 2 | . 1 . 1 Propulsion 2 | . 1 . 1 Utility 1 | . 1 . . Weapon 2 | . 1 . 1 Highest Loss Streak 4 | . 4 . 3 To Critical Strikes . | . . . . Average Backups 6 | 3 6 6 6 Power . | . . . 1 Propulsion 2 | 1 3 2 2 Utility 2 | . . 2 3 Weapon . | . 2 1 . Tool/Special . | . . . . Unused Backups 9 | . 1 3 5 Power 1 | . . . 1 Propulsion 5 | . 1 2 2 Utility 2 | . . . 2 Weapon 1 | . . 1 . Tool/Special . | . . . . Average Slot Usage (%) 88 | . 83 97 87 Engine 12 | . 11 10 12 Core 1 | . . 3 . Leg 27 | . 25 28 27 Device 4 | . 5 12 2 Storage 13 | . 11 14 14 Protection 7 | . . . 11 Energy Gun 3 | . 12 7 . Energy Cannon 5 | . 3 13 3 Ballistic Gun 1 | . 9 . . Impact Weapon 10 | . . 6 14 Peak Build Rating 18 | 5 7 13 18 Average Rating 11 | 2 5 9 13 On Entrance 6 | . 5 6 13 Avg Prop Armor Cover (%) . | . . . . Naked Turns . | . . . . Heaviest Build 26 | 7 15 18 26 Greatest Support 20 | 20 20 20 20 Greatest Overweight (x) 3 | . 3 . 1 Average Overweight (x) . | . . . . Largest Inventory Capacity 8 | 5 8 8 8 Average Capacity 7 | 5 7 8 8 Most Carried 8 | 5 8 8 8 Average Carried 6 | 3 6 6 6 Final Capacity 8 | 5 8 8 8 Final Carried 8 | 5 5 8 7 Class Distribution -------------------- 88% | Mutant 11% | Scavenger-Mutant Dominant Class ---------------- Mutant | -10/Materials Mutant | -10/Mines Mutant | -10/Subcaves Resources | -11 -10 -10 -10 ----------- Run | Yrd Mat Min Sub Matter Collected 586 | 256 170 70 90 Remotely . | . . . . Salvage Created 793 | 44 423 98 228 Parts 50 | 3 28 6 13 Haulers Intercepted . | . . . . Recyclers Shooed . | . . . . Parts Field Recycled . | . . . . Retrieved Matter . | . . . . Parts Self-Destructed 10 | . . . 10 Prevented . | . . . . Parts Restored . | . . . . Kills | -11 -10 -10 -10 ------- Run | Yrd Mat Min Sub Combat Hostiles Destroyed 16 | 1 8 2 5 Guns 4 | 1 3 . . Cannons 6 | . 2 2 2 AOE 3 | . 3 . . Classes Destroyed 6 | 1 2 . 3 Recycler 1 | . 1 . . Watcher 2 | . 2 . . Swarmer 1 | . . . 1 Grunt 11 | 1 8 2 . Sentry 1 | . . . 1 Subdweller 3 | . . . 3 Thug 1 | . . . 1 Best Kill Streak 4 | 1 4 1 3 Combat Bots Only 3 | 1 3 1 3 Max Kills in Single Turn 2 | 1 2 1 1 Gunslinging . | . . . . Exploded 2 | . 2 . . Melee . | . . . . Uniques/NPCs Destroyed . | . . . . Combat | -11 -10 -10 -10 -------- Run | Yrd Mat Min Sub Hostile Shots Fired 100 | 2 61 1 36 Missed 25 | . 14 . 11 Hits 75 | 2 47 1 25 Projectile 75 | 2 47 1 25 Critical Strikes 1 | . . . 1 Actively Blocked 2 | . . . 2 Damage Taken 1300 | 23 562 11 704 Core 268 | . 83 11 174 Absorbed by Shields . | . . . . Redirected to Shielding 37 | . . . 37 Regen/Repaired (Parts) 37 | . 37 . . Core Remaining (%) 100 | 100 . . . Volleys Fired 74 | 2 36 4 32 Largest 2 | 2 2 2 1 Hottest 100 | 70 100 100 80 Shots Fired 105 | 4 63 7 31 Gun 61 | 4 54 3 . Cannon 42 | . 7 4 31 Launcher 2 | . 2 . . Special . | . . . . Kinetic 23 | 2 21 . . Thermal 72 | 2 35 4 31 Explosive 2 | . 2 . . Electromagnetic 8 | . 5 3 . Robot Hit Streak 6 | 2 6 2 3 Robot Miss Streak 5 | 1 5 3 2 Penetration Max . | . . . . Secondary Targets 1 | . 1 . . Max Gunslinging Chain 1 | . 1 . . Shots Hit Robots 46 | 2 32 4 8 Core Hits 26 | 2 18 2 4 Critical Kills . | . . . . Critical Parts Destroyed 1 | . . . 1 Critical Strikes 3 | . 2 . 1 Burn 1 | . 1 . . Corrupt 1 | . 1 . . Smash 1 | . . . 1 Melee Attacks 21 | . . . 21 Impact 21 | . . . 21 Slashing . | . . . . Piercing . | . . . . Sneak Attacks . | . . . . Combat Hostiles . | . . . . Follow-up Attacks . | . . . . Damage Inflicted 1053 | 23 628 63 339 Guns 396 | 23 361 12 . Cannons 307 | . 70 51 186 Explosions 191 | . 191 . . Melee 153 | . . . 153 Ramming 6 | . 6 . . Kinetic 155 | 10 145 . . Thermal 535 | 13 285 51 186 Explosive 151 | . 151 . . Electromagnetic 53 | . 41 12 . Impact 153 | . . . 153 Slashing . | . . . . Piercing . | . . . . Highest Corruption . | . . . . Average Corruption . | . . . . Corruption Purged . | . . . . Corruption Blocked . | . . . . Overload Shots . | . . . . Overflow Damage 91 | . . . 91 Projectiles 18 | . . . 18 Explosions . | . . . . Melee 73 | . . . 73 Knockbacks 4 | . . . 4 Impact 3 | . . . 3 Kinetic . | . . . . Secondary 1 | . . . 1 Self-Inflicted Damage . | . . . . Shots . | . . . . Rammed . | . . . . Targets Rammed 2 | . 2 . . Kicked 2 | . 2 . . Crushed . | . . . . Highest Temperature 314 | 30 314 84 16 Average Temperature 129 | 20 160 32 7 Received Heat Transfer 294 | 12 252 6 24 Siege Activations . | . . . . Martial Activations . | . . . . Shielding Activations . | . . . . Robots Disrupted . | . . . . Combat Hostiles . | . . . . Robots Corrupted 3 | . . . 3 Combat Hostiles 3 | . . . 3 Parts Fried . | . . . . Impact Corruptions 3 | . . . 3 Robots Melted . | . . . . Combat Hostiles . | . . . . Parts Melted 1 | . 1 . . Heat Transferred 1234 | 37 790 111 296 Parts Sabotaged . | . . . . Parts Stolen . | . . . . Parts Stripped . | . . . . Power Chain Reactions 1 | . 1 . . Alert | -11 -10 -10 -10 ------- Run | Yrd Mat Min Sub Maximum Alert Level . | . . . . Low Security (%) 100 | 100 100 100 . Level 1 . | . . . . Level 2 . | . . . . Level 3 . | . . . . Level 4 . | . . . . Level 5 . | . . . . High Security . | . . . . Max Security . | . . . . Peak Influence 114 | 20 114 40 . Initial 40 | . 6 40 . Average 16 | 4 29 6 . Influence Increases 363 | 20 253 50 40 Destroy 0b10 Robot/C 260 | 20 160 40 40 Destroy 0b10 Robot/NC 15 | . 15 . . Destroy Leader 44 | . 34 10 . Successful Hack 12 | . 12 . . Disable Machine 15 | . 15 . . Destroy Structure 17 | . 17 . . Influence Decreases 363 | 10 157 156 40 Entered New Map 70 | . 4 66 . Time Decay 253 | 10 113 90 40 Lost Part 40 | . 40 . . Squads Dispatched 3 | . 3 . . Investigation 2 | . 2 . . Extermination . | . . . . Reinforcement 1 | . 1 . . Assault . | . . . . Garrison . | . . . . Intercept . | . . . . Searches Triggered . | . . . . Construction Impeded . | . . . . Haulers Reinforced . | . . . . Active Scanning Responses . | . . . . Cargo Convoy Interrupts . | . . . . Stealth | -11 -10 -10 -10 --------- Run | Yrd Mat Min Sub Distress Signals 1 | . 1 . . Communications Jammed . | . . . . Distress Signals . | . . . . Times Spotted 34 | 1 14 3 16 Peak Tracking Total 9 | 1 4 1 9 Tactical Retreats . | . . . . Traps | -11 -10 -10 -10 ------- Run | Yrd Mat Min Sub Traps Triggered 5 | . 2 . 3 Indirectly . | . . . . Trap Hack Attempts . | . . . . Triggered . | . . . . Disarmed . | . . . . Reprogrammed . | . . . . Reused . | . . . . Traps Extracted . | . . . . Installed . | . . . . Triggered . | . . . . Machines | -11 -10 -10 -10 ---------- Run | Yrd Mat Min Sub Machines Disabled 2 | . 2 . . Max in Single Turn 1 | . 1 . . Machines Repaired . | . . . . Machines Dismantled . | . . . . Machines Sabotaged . | . . . . Overloaded Fab Kills . | . . . . Hacking | -11 -10 -10 -10 --------- Run | Yrd Mat Min Sub Machines Accessed 2 | . 2 . . Terminals 1 | . 1 . . Fabricators . | . . . . Repair Stations 1 | . 1 . . Recycling Units . | . . . . Scanalyzers . | . . . . Garrison Access . | . . . . Total Hacks 6 | . 6 . . Successful 2 | . 2 . . Failed 4 | . 4 . . Catastrophic 1 | . 1 . . Database Lockouts . | . . . . Manual . | . . . . Terminals 3 | . 3 . . Fabricators . | . . . . Repair Stations 3 | . 3 . . Recycling Units . | . . . . Scanalyzers . | . . . . Garrison Access . | . . . . Terminal Hacks . | . . . . Fabricator Hacks . | . . . . Repair Station Hacks 2 | . 2 . . Scan Component 1 | . 1 . . Repair 1 | . 1 . . Recycling Unit Hacks . | . . . . Scanalyzer . | . . . . Garrison Access Hacks . | . . . . Unauthorized Hacks . | . . . . Terminals . | . . . . Fabricators . | . . . . Repair Stations . | . . . . Recycling Units . | . . . . Scanalyzers . | . . . . Garrison Access . | . . . . Data Cores Recovered . | . . . . Used . | . . . . Hacking Detections 2 | . 2 . . Full Trace Events 1 | . 1 . . Feedback Events . | . . . . Feedback Blocked . | . . . . Robot Schematics Acquired . | . . . . Robots Built . | . . . . Authchips . | . . . . Time . | . . . . Total Robot Build Rating . | . . . . Part Schematics Acquired . | . . . . Parts Built . | . . . . Authchips . | . . . . Time . | . . . . Total Part Build Rating . | . . . . Part Studies Acquired . | . . . . Parts Repaired 1 | . 1 . . Time 13 | . 13 . . Parts Recycled . | . . . . Recycled Matter . | . . . . Retrieved Matter . | . . . . Retrieved Components . | . . . . Parts Scanalyzed . | . . . . Part Schematics Acquired . | . . . . Parts Damaged . | . . . . Bothacking | -11 -10 -10 -10 ------------ Run | Yrd Mat Min Sub Used RIF Installer . | . . . . Robots Hacked . | . . . . Non-combat . | . . . . Combat . | . . . . Robot Hacks Applied . | . . . . Relay Couplers Released . | . . . . Fabnet Peak Effective % . | . . . . Robots Rewired . | . . . . Allies Hacked . | . . . . Hacks Repelled . | . . . . Allies | -11 -10 -10 -10 -------- Run | Yrd Mat Min Sub Total Allies . | . . . . Largest Group . | . . . . Highest-Rated Group . | . . . . Highest-Rated Ally . | . . . . Total Orders . | . . . . Ally Attacks . | . . . . Total Damage . | . . . . Kills . | . . . . Allies Corrupted . | . . . . Allies Melted . | . . . . Intel | -11 -10 -10 -10 ------- Run | Yrd Mat Min Sub Active Infowar (turns) 663 | . 190 471 2 Sensors 473 | . . 471 2 Terrain 190 | . 190 . . Robot Analysis Total . | . . . . Derelict Logs Recovered 1 | . . 1 . Drone Launches . | . . . . Drone Recoveries . | . . . . Exploration | -11 -10 -10 -10 ------------- Run | Yrd Mat Min Sub Turns Passed 3061 | 104 481 534 1942 Spaces Moved 2213 | 84 290 415 1424 Core 43 | 28 15 . . Treads . | . . . . Legs 2170 | 56 275 415 1424 Wheels . | . . . . Hover . | . . . . Flight . | . . . . Fastest Speed 50 | 50 120 120 120 Average Speed 124 | 96 124 120 127 Slowest Speed 200 | 120 200 120 190 Overloaded Moves . | . . . . Propulsion Burnouts . | . . . . Robots Hopped . | . . . . Potential Cave-ins . | . . . . Cave-ins Triggered . | . . . . Exploration Rate (%) 40 | 5 33 59 63 Regions Visited 3 Branch Regions 2 Pre-discovered Areas 1 | . . 1 . Known Exits Taken . | . . . . Unknown Exits Taken 3 | 1 1 1 . Scrap Searched 4 | . . 1 3 Spaces Dug 19 | . . . 19 Terrain Destroyed 34 | . 15 . 19 Melee 5 | . . . 5 Projectile 14 | . . . 14 AOE 15 | . 15 . . Terrain Rammed . | . . . . Walls Destroyed . | . . . . Machines Disabled . | . . . . Actions | -11 -10 -10 -10 --------- Run | Yrd Mat Min Sub Total 2400 | 102 348 448 1502 Wait 1 | . . . 1 Move 2210 | 83 289 414 1424 Hop . | . . . . Pick Up 37 | 9 8 13 7 Fast Attach 2 | 1 1 . . Attach 21 | 4 7 4 6 Detach 2 | . 1 . 1 Swap 10 | 2 1 3 4 Drop 20 | 1 3 10 6 Fire 74 | 2 36 4 32 Melee 21 | . . . 21 Ram . | . . . . Kick 2 | . 2 . . Crush . | . . . . Escape Stasis . | . . . . Rewire . | . . . . Trap . | . . . . Miscellaneous . | . . . . Route ------- -11/Scrapyard -10/Materials -10/Mines -10/Subcaves History --------- Turn | Location | Event 2 | -11/Scrapyard | Met Revision 17 71 | -11/Scrapyard | Discovered new exit (range 8) 105 | -11/Scrapyard | Entered Materials 309 | -10/Materials | Build established: Mutant 457 | -10/Materials | Discovered new exit (range 16) 483 | -10/Materials | Lost 4 parts (1p1n1u1w) 540 | -10/Materials | Repaired Ion Engine 586 | -10/Materials | Entered Mines 652 | -10/Mines | A weapon hastily lodged in a ceiling crevice suddenly fell to the ground 747 | -10/Mines | Learned location of Mines (-9) 761 | -10/Mines | Joined a pair of Derelicts in attacking an 0b10 outpost 1090 | -10/Mines | Discovered new exit (range 10) 1120 | -10/Mines | Entered Subcaves 1121 | -10/Subcaves | Approached by a straggling Scientist 1225 | -10/Subcaves | Ambushed by swarm of Subdwellers 1226 | -10/Subcaves | Ambushed by Subdwellers from Twisted Machinery 1226 | -10/Subcaves | Ambushed by Subdwellers from Twisted Machinery 1233 | -10/Subcaves | Core integrity fell below 50% 1248 | -10/Subcaves | Core integrity fell below 20% 1271 | -10/Subcaves | Lost 3 parts (1p1n1w) 1365 | -10/Subcaves | Shifting Twisted Machinery released Sub. Power Source 1376 | -10/Subcaves | Shifting Twisted Machinery released Sub. Power Source 2726 | -10/Subcaves | Build established: Scavenger-Mutant 3062 | -10/Subcaves | Destroyed by Piercing Trap Last Messages --------------- extended periods. Tunneling a short distance between rooms is safe unless the area was destabilized by an explosion. Acquired 30 matter. Destroyed Flight Unit. S-10 Pest destroyed. Y-45 Defender destroyed. Imp. Ion Engine fries itself beyond repair. Lgt. Ion Engine fries itself beyond repair. Flight Unit fries itself beyond repair. Heat Sink fries itself beyond repair. Hvy. Assault Rifle fries itself beyond repair. Lgt. Treads fries itself beyond repair. Sub. Beam Cannon shoots sparks and powers down. Dropped Broken Sub. Beam Cannon. Acquired 10 matter. IB-0EH(u) builds Twisted Machinery. Triggered Piercing Trap. Spikes shoot up from the floor. Critical hit (Impale). Map ----- +----------------------------------------------------+ | &!& "## ##???????????????????? ????? | | &% %##### #????????????????????? #??? | | ## &&&%&%#??? ## ????????????????? #?? | | ##?# %!" ### #???????????????? #? | | #???## ! %" #?????????????????# # | | #?##### %! ?????????????????# | | ?## &% [%=&###### ???######???????# | | ?# ####!###?????## ?? ##???????# | | ?## = ##???##?????????# ? #?????????? | | #?## |%%##???????????????# ? ??????????? | | ?# !##???????????????## ##?? #??????????? | | ## ##???????????? #### ##??# ??????? #?? | | ##????????????? #### #????? ?# | | ##??????????????? ## ##?? ## | | ### #?????????????????# ## ## | | ??## #?????????????????# ???# | | ??## ##??????????????????# ???????# | | ??# ##????????????????????# #??????????# | | ??#" #????????????????????# " #?????####?## | | ??# ##???????????????????## " ####### #### | | ??# #????????????????###?# "" ## | | ??## ##??????????????## ### # " | | ??## ###??????????### ## "" ### ### | | ??# #??????????# ^ " "" #?# #?# | | ??# #??#######?## # #" """"### ## | | ??### #### #### @ ###" """"" ### ### | | ????## ##?#" *""""" #?# #?? | | ?????# ^ ^ #??# """ #?####?? | | ????## #####??### " #??????? | | ????# # # # ^ ##???????## #??????? | | ????# ^##??????## #??????? | | ????# #??????# #??????? | | ????# ### ## ^####??????# ####### ##?????? | | ????# ##?##### ^ ##?????????## #?????## #?????? | | ????####??????## ##???????????###??????## #?????? | | ???????????????####??????????????????????###?????? | | ?????????????????????????????????????????????????? | | ?????????????????????????????????????????????????? | | ?????????????????????????????????????????????????? | | ?????????????????????????????????????????????????? | | ?????????????????????????????????????????????????? | | ?????????????????????????????????????????????????? | | ?????????????????????????????????????????????????? | | ?????????????????????????????????????????????????? | | ?????????????????????????????????????????????????? | | ?????????????????????????????????????????????????? | | ?????????????????????????????????????????????????? | | ?????????????????????????????????????????????????? | | ?????????????????????????????????????????????????? | | ?????????????????????????????????????????????????? | +----------------------------------------------------+ Best States ------------- Heat Dissipation 39 Energy Generation 18 Energy Capacity 250 Matter Stores 300 Matter Capacity 300 Sight Range 16 Robot Scan Range 14 Terrain Scan Range 14 Terrain Scan Density 10 Core Shielding 20 Evasion (%) 55 Item Schematics ----------------- None Robot Schematics ------------------ None Fabricated ------------ Nothing Repaired ---------- Ion Engine | 38% | -10/Materials Studied --------- None Alien Tech Used ----------------- None Achievements -------------- Backstab DATA ERROR: Steam Global Achievement% Part-time Mechanic Power Corrupts That Tickles Challenges ------------ None Game ------ Seed MassSixPerforator Manual? 0 Play Time 00:36:19 Cumulative 1.4 hours Start 2026.06.28 @ 11:04:35 End 2026.06.28 @ 11:40:58 Sessions 1 Manual Loads 0 Difficulty Rogue Special Mode None Game No. 2 Rogue 2 Adventurer 0 Explorer 0 Win Type - Total 0 Types 0/0/0/0/0/0/0/0/0/0 Lore% 0 Gallery% 2 Achievement% 3 Wizard Run 0 Options --------- Layout 1 ASCII 0 Keyboard 0 Movement Mouse Keybinds 0 Fullscreen 1 Font 24/Smallcaps Map View 50x35 Zoom Use 0% Tactical HUD 0 Map Filters NONE Filters NONE Steam 1 RUN: d0782270-79c6-49b1-a5bc-12e6b5a08a80